[Event "FRA-ch Teams Top 16-A 2022"]
[Site "Chartres"]
[Date "2022.06.12"]
[Round "4.12"]
[White "David, Alberto"]
[Black "Solakian-Van Eyll, Jerome"]
[Result "1-0"]
[ECO "A09"]
[WhiteElo "2520"]
[BlackElo "2248"]
[Annotator "TA"]
[PlyCount "105"]
[EventDate "2022.06.09"]
[EventType "team-tourn"]
[EventCountry "FRA"]
[SourceTitle "playchess.com"]
[Source "ChessBase"]
[SourceQuality "1"]
[TimeControl "40/5400+30:1800+30"]

{[%evp 9,105,5,3,0,0,0,1,0,6,-12,0,0,0,0,0,0,6,0,0,0,0,-6,0,0,0,0,0,-11,0,0,49,39,100,81,85,68,109,98,117,127,139,127,148,139,166,147,143,105,96,100,109,97,98,95,89,93,94,98,115,90,84,83,91,87,230,221,227,219,241,244,253,250,247,239,230,206,211,30,1033,913,405,405,1558,1106,12838,12838,12839,12840,12840,12841,12841,12841,12841,0,12845,12845,12845,12845]} 1. Nf3 {[%emt 0:01:30]} d5 {[%emt 0:00:25]} 2. g3 {[%emt 0:00:16]} Nd7 {[%emt 0:01:53]} 3. c4 {[%emt 0:04:51]} dxc4 {[%emt 0:03:37]} 4. Qa4 {[%emt 0:00:35]} a6 {[%emt 0:06:12]} 5. Qxc4 {[%emt 0:00:15]} b5 {[%emt 0:02:09]} 6. Qc2 {[%emt 0:07:42] A09: Réti Opening: 1 Nf3 d5 2 c4.} c5 {[%emt 0:01:58]} 7. Bg2 {[%emt 0:00:50][%cal Of3d4] next Nd4! is good for White.} Bb7 {[%emt 0:00:40]} 8. O-O {[%emt 0:00:17] The position is equal.} Ngf6 {[%emt 0:02:51]} 9. b3 {[%emt 0:08:18] [#]} g6 $146 {[%emt 0:03:54]} ({Predecessor:} 9... e6 10. Bb2 Be7 11. d3 O-O 12. Nbd2 Rc8 13. Rac1 Nd5 14. Qb1 Bf6 15. a3 Bxb2 16. Qxb2 Qf6 17. Qxf6 gxf6 18. Rc2 N5b6 19. Rfc1 f5 20. Ne5 Bxg2 21. Nxd7 Nxd7 22. Kxg2 {½-½ (36) Bischoff,K (2505)-Greenfeld,A (2535) Ljubljana/Portoroz 1989}) 10. Bb2 {[%emt 0:02:05]} Bg7 {[%emt 0:00:16]} 11. d3 {[%emt 0:00:34]} O-O {[%emt 0:00:32]} 12. Nbd2 {[%emt 0:00:28]} Qb6 {[%emt 0:04:56]} 13. Rac1 {[%emt 0:00:22]} Rfd8 {[%emt 0:05:10]} 14. a3 {[%emt 0:03:54]} Rac8 {[%emt 0:03:57]} 15. Qb1 {[%emt 0:00:45]} Nf8 {[%emt 0:04:06]} 16. Bh3 {[%emt 0:05:15]} Ne6 {[%emt 0:03:58]} 17. b4 {[%emt 0:01:11]} cxb4 {[%emt 0:11:32]} 18. axb4 {[%emt 0:00:33]} Bh6 {[%emt 0:09:59]} 19. Rxc8 {[%emt 0:05:20]} Rxc8 {[%emt 0:07:44]} (19... Bxc8 $11 20. e4 Bxd2 21. Nxd2 Nd4 22. Bxc8 Rxc8) 20. e4 $14 {[%emt 0:00:53]} Rd8 {[%emt 0:04:28]} (20... Nd7 $14) 21. Nb3 $1 $16 {[%emt 0:00:52]} Bc8 {[%emt 0:16:39]} 22. d4 {[%emt 0:09:30][%cal Bd3d4,Bd4d5][%mdl 32]} Ng5 {[%emt 0:03:31]} 23. Nxg5 {[%emt 0:00:11] Threatens to win with Bxc8.} Bxg5 {[%emt 0:00:04]} 24. Bg2 {[%emt 0:05:26]} Ne8 {[%emt 0:00:19]} 25. d5 {[%emt 0:00:43]} Nd6 {[%emt 0:01:10]} 26. Bd4 {[%emt 0:00:53]} Qc7 {[%emt 0:00:27]} 27. f4 {[%emt 0:05:34]} Bh6 {[%emt 0:00:03]} 28. Rc1 {[%emt 0:00:05]} Nc4 {[%emt 0:00:08]} 29. Na5 {[%emt 0:00:04]} e6 {[%emt 0:00:47]} 30. Nxc4 {[%emt 0:01:25]} bxc4 {[%emt 0:00:03]} 31. Qa2 $36 {[%emt 0:00:03][%mdl 2048] White is in control. White is more active.} exd5 {[%emt 0:01:02]} 32. exd5 {[%emt 0:00:05]} Bg7 {[%emt 0:00:49]} 33. Bxg7 {[%emt 0:10:55]} Kxg7 {[%emt 0:00:02]} 34. Qxc4 {[%emt 0:00:06]} Qb6+ {[%emt 0:00:25]} 35. Qc5 {[%emt 0:03:56]} Qf6 {[%emt 0:00:06]} 36. Qe3 {[%emt 0:00:18]} Bb7 {[%emt 0:00:49] Against Rc6} (36... Bd7 $16 {was worth a try.}) 37. Qe5 $1 $18 {[%emt 0:01:32]} Rd7 {[%emt 0:01:35]} 38. Rc5 {[%emt 0:05:30]} h6 {[%emt 0:00:20]} 39. h4 {[%emt 0:01:22]} g5 {[%emt 0:00:39]} 40. hxg5 {[%emt 0:13:17]} hxg5 {[%emt 0:00:11]} 41. Kf2 {[%emt 0:24:19]} (41. Qxg5+ $6 Qxg5 42. fxg5 Kg6 $16) 41... gxf4 {[%emt 0:15:35]} 42. gxf4 {[%emt 0:00:06]} Rd6 {[%emt 0:04:20]} 43. Rc3 $2 {[%emt 0:01:26]} (43. Rc4 $18) 43... Kf8 $2 {[%emt 0:08:07][%mdl 8192]} (43... Bxd5 $11 44. Rd3 (44. Rg3+ Kf8 $16) 44... Re6 45. Rg3+ (45. Qxd5 Qxf4+ 46. Rf3 Qxb4 $16) 45... Kf8 46. Qxd5 (46. Qxf6 Rxf6 47. Bxd5 Rxf4+ 48. Ke2 Rxb4 $16) 46... Qxf4+ 47. Bf3 Qxb4 48. Qd8+ Re8) 44. Qxf6 {[%emt 0:06:17]} ({Weaker is} 44. Rc7 Bxd5 45. Qxf6 (45. Bxd5 Qxe5 46. Rxf7+ Ke8 $11) 45... Rxf6 $16) 44... Rxf6 {[%emt 0:00:01][%mdl 4096] Endgame KRB-KRB} 45. d6 $1 {[%emt 0:00:53][%cal Bd5d6,Bd6d7][%mdl 32]} Rxf4+ {[%emt 0:03:25]} (45... Bxg2 $142 46. Rc8+ (46. Kxg2 Rxd6 47. Ra3 Rb6 $11) 46... Kg7) 46. Kg3 {[%emt 0:00:03]} Rxb4 {[%emt 0:01:17]} 47. d7 {[%emt 0:00:04]} Ke7 {[%emt 0:00:17]} 48. Bh3 $1 {[%emt 0:00:28]} Rd4 {[%emt 0:01:09]} 49. Re3+ {[%emt 0:00:11]} Re4 {[%emt 0:00:38]} 50. Rd3 {[%emt 0:00:09][%cal Rd7d8]} Kd8 {[%emt 0:00:17] [#]} 51. Rc3 $2 {[%emt 0:00:04]} ({White has to play} 51. Rb3 $1 $18 f5 52. Rxb7 Re3+ 53. Kh4) 51... Ke7 $2 {[%emt 0:00:28][%mdl 8192] [#]} (51... Rd4 $2 52. Rc8+ Ke7 53. Re8+ Kf6 54. d8=Q+ $18) (51... Re6 $11) 52. Rc8 $1 {[%emt 0:00:11][%csl Gc8][%cal Rd7d8]} Re3+ {[%emt 0:00:49]} 53. Kf2 {[%emt 0:00:30] Weighted Error Value: White=0.25 (precise) /Black=0.14 (very precise)} 1-0

[Event "FRA-ch Teams Top 16-A 2022"]
[Site "Chartres"]
[Date "2022.06.12"]
[Round "4.13"]
[White "Baillon, Olivier"]
[Black "Guilleux, Fabien"]
[Result "0-1"]
[ECO "A30"]
[WhiteElo "2197"]
[BlackElo "2382"]
[Annotator "TA"]
[PlyCount "66"]
[EventDate "2022.06.09"]
[EventType "team-tourn"]
[EventCountry "FRA"]
[SourceTitle "playchess.com"]
[Source "ChessBase"]
[SourceQuality "1"]
[TimeControl "40/5400+30:1800+30"]

{[%evp 9,66,7,0,4,7,0,3,-35,-38,-43,-38,-41,-41,-41,-31,-48,-39,-44,-52,-72,-68,-112,-121,-108,-79,-226,-224,-341,-338,-341,-303,-281,-168,-482,-521,-461,-306,-277,-289,-263,-274,-260,-181,-234,-235,-306,-133,-133,-126,-126,-120,-700,-715,-976,-740,-29984,-29985,-5777,-5752]} 1. Nf3 {[%emt 0:00:02]} c5 {[%emt 0:00:12]} 2. c4 {[%emt 0:00:36]} Nf6 {[%emt 0:00:19]} 3. b3 {[%emt 0:03:58]} d5 {[%emt 0:02:01]} 4. cxd5 {[%emt 0:00:48]} Nxd5 {[%emt 0:00:11]} 5. Bb2 {[%emt 0:03:29]} Nc6 {[%emt 0:01:08]} 6. Nc3 {[%emt 0:02:52] A30: Symmetrical English: Double Fianchetto and Hedgehog.} Nxc3 {[%emt 0:01:20]} 7. Bxc3 {[%emt 0:02:43] [#]} Qc7 $146 {[%emt 0:10:58]} ({Predecessor:} 7... f6 8. e3 e5 9. Qc2 Be6 10. Bd3 g6 11. Be4 Rc8 12. Rd1 Bd6 13. O-O Qc7 {½-½ (34) Xiong,J (2685)-Caruana,F (2781) Saint Louis 2022}) 8. g3 {[%emt 0:08:33] The position is equal.} e5 {[%emt 0:00:23]} 9. d3 {[%emt 0:02:38]} Be7 {[%emt 0:00:16]} 10. Bg2 {[%emt 0:00:31]} O-O {[%emt 0:00:24]} 11. O-O {[%emt 0:00:42]} Bg4 {[%emt 0:02:48]} 12. Qc2 {[%emt 0:08:42]} Rac8 {[%emt 0:09:20]} 13. e3 {[%emt 0:13:43]} Rfd8 {[%emt 0:03:29]} 14. Rfe1 {[%emt 0:01:21]} f6 {[%emt 0:16:01]} 15. Nd2 {[%emt 0:10:12]} Qd7 {[%emt 0:05:40][%cal Oc6d4]} 16. Bf1 {[%emt 0:05:15]} Bh3 {[%emt 0:06:02] Black is more active.} 17. Be2 {[%emt 0:07:57] [#]} (17. Bxh3 $17 Qxh3 18. Nc4) 17... Nd4 $1 $19 {[%emt 0:01:34]} ({Worse is} 17... Qd5 18. Bf3 Qxd3 19. Qxd3 Rxd3 20. Rac1 $17) 18. Bxd4 {[%emt 0:17:31]} (18. Qd1 {keeps fighting.} Nxe2+ 19. Qxe2) 18... cxd4 {[%emt 0:00:10]} ({Inferior is} 18... exd4 19. Bf3 $15) 19. Qb2 {[%emt 0:00:18]} dxe3 {[%emt 0:03:28]} 20. fxe3 {[%emt 0:00:16]} Bc5 {[%emt 0:00:27]} (20... Bb4 $142 21. Rac1 Qd5) 21. Kf2 $2 {[%emt 0:04:40]} (21. Bf1 {nothing else works.}) 21... Qf5+ {[%emt 0:15:37]} 22. Nf3 {[%emt 0:00:12]} e4 {[%emt 0:00:08]} 23. dxe4 {[%emt 0:00:11]} Qxe4 {[%emt 0:00:06][%csl Gc5][%cal Re4e3]} 24. Bc4+ {[%emt 0:02:09]} Kh8 {[%emt 0:00:02][%cal Ob7b5]} 25. Qe2 {[%emt 0:00:38]} Re8 {[%emt 0:02:26][%cal Ob7b5] aiming for ...b5!} 26. Qd3 {[%emt 0:00:49]} (26. Rad1 {was called for.}) 26... Qe7 {[%emt 0:02:29]} 27. Nd4 {[%emt 0:01:56]} a6 {[%emt 0:00:56]} (27... Rcd8 $19 {[%cal Ob7b5] ...b5! is the strong threat.} 28. Bb5 Rf8) 28. Bd5 $17 {[%emt 0:00:34]} Bb4 $36 {[%emt 0:03:47][%mdl 2048] And now ...Rc3 would win. Keeping White busy.} 29. Rec1 {[%emt 0:00:32] Inhibits Rc3.} Rcd8 {[%emt 0:00:07]} 30. e4 {[%emt 0:01:04][%mdl 8192]} (30. Bg2 $17 Bg4 31. Bf3 Bxf3 32. Kxf3) 30... Bc5 $19 {[%emt 0:00:44]} 31. Qc4 {[%emt 0:00:20]} Ba7 {[%emt 0:00:32] This bishop pair is nice.} 32. Rd1 {[%emt 0:00:40]} b5 {[%emt 0:01:09]} 33. Qd3 {[%emt 0:00:37] [#]} Rxd5 $1 {[%emt 0:00:39][%mdl 512] Weighted Error Value: White=0.82/Black=0.25 (precise)} 0-1

[Event "FRA-ch Teams Top 16-A 2022"]
[Site "Chartres"]
[Date "2022.06.12"]
[Round "4.14"]
[White "Bournel, Antoine"]
[Black "Hirth, Julien"]
[Result "1/2-1/2"]
[ECO "E90"]
[WhiteElo "2345"]
[BlackElo "2072"]
[Annotator "TA"]
[PlyCount "59"]
[EventDate "2022.06.09"]
[EventType "team-tourn"]
[EventCountry "FRA"]
[SourceTitle "playchess.com"]
[Source "ChessBase"]
[SourceQuality "1"]
[TimeControl "40/5400+30:1800+30"]

{[%evp 16,59,29,26,45,37,40,45,40,46,52,41,40,0,0,0,2,0,34,-70,-13,-14,-20,-42,-41,-36,0,0,-13,-56,-53,-53,-47,-56,-49,-46,0,-44,-41,-33,0,0,0,-47,0,0]} 1. d4 {[%emt 0:00:40]} d6 {[%emt 0:00:08]} 2. Nf3 {[%emt 0:00:57]} Nf6 {[%emt 0:00:12]} 3. c4 {[%emt 0:00:36]} g6 {[%emt 0:00:12]} 4. Nc3 {[%emt 0:00:40]} Bg7 {[%emt 0:00:08]} 5. e4 {[%emt 0:01:32]} O-O {[%emt 0:00:13]} 6. h3 {[%emt 0:03:00]} e5 {[%emt 0:00:53]} 7. d5 {[%emt 0:03:48]} a5 {[%emt 0:00:14]} 8. g4 {[%emt 0:04:02]} Na6 {[%emt 0:01:21]} 9. Be3 {[%emt 0:05:34]} Nd7 {[%emt 0:03:26] E90: King's Indian: Classical: Early deviations and 6 h3.} 10. a3 {[%emt 0:21:02]} Nb6 {[%emt 0:01:19]} 11. Rg1 {[%emt 0:06:11]} Bd7 {[%emt 0:00:56] White is slightly better. 11...Kh8 is the hot move.} 12. h4 {[%emt 0:02:05]} Nc5 {[%emt 0:01:22]} 13. Bxc5 {[%emt 0:08:45]} dxc5 {[%emt 0:00:29] [#]} 14. h5 $146 {[%emt 0:00:46]} ({Predecessor:} 14. Rg3 Nc8 15. Qe2 Nd6 16. O-O-O Qc8 17. Nd2 Rb8 18. a4 Qe8 19. b3 f5 20. Bh3 fxg4 21. Bxg4 Bxg4 22. Rxg4 {½-½ (27) Galavics,H (2397)-Riemer,W (2370) ICCF email 2018}) 14... gxh5 {[%emt 0:10:17]} 15. gxh5 {[%emt 0:00:57] [#] Threatens to win with h6.} Kh8 {[%emt 0:00:32]} 16. h6 {[%emt 0:05:43]} Bf6 {[%emt 1:16:48]} 17. Nh2 {[%emt 0:03:28]} (17. Qd3 $14) 17... Nc8 {[%emt 0:00:00]} (17... Rg8 $15 18. Rxg8+ Qxg8) 18. Qf3 {[%emt 0:04:04]} Nd6 {[%emt 0:00:00]} 19. Ng4 {[%emt 0:01:32]} Bxg4 {[%emt 0:00:00]} 20. Rxg4 {[%emt 0:00:14]} Qe7 {[%emt 0:00:00]} (20... Bg5 {with more complications.} 21. Bd3 Rg8 22. Kd1 Rg6) 21. O-O-O {[%emt 0:03:58]} Rg8 {[%emt 0:00:00]} 22. Bd3 {[%emt 0:02:38]} Rxg4 {[%emt 0:00:00]} 23. Qxg4 {[%emt 0:00:01]} Rg8 {[%emt 0:00:00]} 24. Qh3 {[%emt 0:00:02]} Bg5+ {[%emt 0:00:00]} 25. Kb1 {[%emt 0:00:05]} Qf6 {[%emt 0:00:00]} (25... Rg6 $15 {might be stronger.}) 26. Qd7 {[%emt 0:02:15]} Qd8 {[%emt 0:00:00]} 27. Qh3 {[%emt 0:00:36]} Qf6 {[%emt 0:00:00]} 28. Qd7 {[%emt 0:00:05]} Qd8 {[%emt 0:00:00]} 29. Qh3 {[%emt 0:00:22]} Qf6 {[%emt 0:00:00]} (29... Rg6 $1 $15 {was preferrable.}) 30. Qd7 {[%emt 0:01:13] Weighted Error Value: White=0.18 (very precise) /Black=0.14 (very precise)} 1/2-1/2

[Event "FRA-ch Teams Top 16-A 2022"]
[Site "Chartres"]
[Date "2022.06.12"]
[Round "4.15"]
[White "Lemonnier, Remi"]
[Black "Alexieva, Silvia"]
[Result "0-1"]
[ECO "B07"]
[WhiteElo "2033"]
[BlackElo "2219"]
[Annotator "TA"]
[PlyCount "132"]
[EventDate "2022.06.09"]
[EventType "team-tourn"]
[EventCountry "FRA"]
[SourceTitle "playchess.com"]
[Source "ChessBase"]
[SourceQuality "1"]
[TimeControl "40/5400+30:1800+30"]

{[%evp 9,132,16,7,-2,0,-15,-7,0,0,-6,0,-1,0,-15,0,0,0,0,0,0,0,0,0,-3,-18,-10,-9,-58,-47,-51,-39,-37,-28,-38,-37,-86,-68,-70,-56,-58,-14,-31,-29,-62,-29,-41,-41,-36,-31,-56,0,-83,-29,-66,-68,-63,-57,-64,-67,-70,-18,-75,-98,-64,-73,-67,-75,-716,-674,-692,-585,-633,-616,-753,-753,-750,-753,-753,-753,-753,-753,-819,-819,-858,-643,-646,-558,-564,-564,-439,-560,-537,-527,-526,-480,-707,-681,-620,-619,-752,-696,-29981,-29982,-29981,-3379,-5206,-3245,-2258,-1218,-29984,-29985,-29985,-29985,-29985,-29986,-29986,-29986,-29987,-29986,-29982,-29983,-29982,-29979,-29987,-29988]} 1. e4 {[%emt 0:00:03]} d6 {[%emt 0:00:13]} 2. d4 {[%emt 0:00:08]} Nf6 {[%emt 0:00:05]} 3. Nc3 {[%emt 0:00:27]} e5 {[%emt 0:00:15]} 4. Nge2 {[%emt 0:00:41]} Be7 {[%emt 0:02:53]} 5. g3 {[%emt 0:00:56]} c6 {[%emt 0:00:21]} 6. Bg2 {[%emt 0:01:45] B07: Pirc Defence: Miscellaneous Systems.} b5 {[%emt 0:01:21][%cal Bb7b5,Bb5b4][%mdl 32]} 7. a3 {[%emt 0:00:26]} Nbd7 {[%emt 0:00:18]} 8. O-O {[%emt 0:01:21] The position is equal.} a5 {[%emt 0:00:28]} 9. d5 {[%emt 0:11:42]} Bb7 {[%emt 0:00:23][%cal Bc8b7,Bb7c6,Bc6b5][%mdl 32]} 10. h3 {[%emt 0:06:45]} O-O {[%emt 0:08:11]} 11. g4 {[%emt 0:03:11]} b4 {[%emt 0:00:14]} 12. dxc6 {[%emt 0:01:46]} Bxc6 {[%emt 0:00:07]} 13. Nd5 {[%emt 0:00:55]} Nxd5 {[%emt 0:06:30]} 14. exd5 {[%emt 0:00:05]} Bb5 {[%emt 0:00:05]} 15. Re1 $1 {[%emt 0:01:56] [#]} Bh4 $146 {[%emt 0:08:42][%cal Ob4b3]} ({Predecessor:} 15... Rc8 16. axb4 axb4 17. Qd2 Rb8 18. Ng3 Qc7 19. Nf5 Rfe8 20. Re4 b3 21. cxb3 Nc5 22. Nxe7+ Rxe7 {0-1 (42) Hrbolka,L (2206)-Pribyl,M (2306) Czech Republic 2018}) 16. Ng3 {[%emt 0:06:44]} Bxg3 {[%emt 0:00:24]} 17. fxg3 {[%emt 0:00:04]} Qc7 {[%emt 0:00:43]} 18. Bd2 {[%emt 0:06:20]} (18. axb4 $11 axb4 19. Rxa8 Rxa8 20. Bd2) 18... bxa3 $15 {[%emt 0:06:34]} 19. Rxa3 {[%emt 0:01:23]} a4 {[%emt 0:00:26]} 20. Kh2 {[%emt 0:04:57]} Rfc8 {[%emt 0:04:11]} 21. Rc3 {[%emt 0:08:22]} Qb7 {[%emt 0:00:12]} 22. Rxc8+ {[%emt 0:01:29]} (22. g5 $15 {is more appropriate.}) 22... Rxc8 $17 {[%emt 0:00:26]} 23. Bb4 {[%emt 0:02:10]} Qb6 {[%emt 0:05:38]} 24. Qd2 {[%emt 0:02:53] Prevents Qf2.} Rc4 {[%emt 0:03:08]} 25. c3 {[%emt 0:04:13]} Rc8 {[%emt 0:01:40]} 26. Bf1 {[%emt 0:06:41]} Nc5 {[%emt 0:01:22]} 27. Qf2 {[%emt 0:03:57]} Qb7 {[%emt 0:04:09]} 28. Bxb5 {[%emt 0:11:23]} Qxb5 {[%emt 0:00:06]} 29. Rf1 {[%emt 0:01:24]} Qb7 {[%emt 0:00:08]} (29... Rc7 $15) 30. Qf5 {[%emt 0:01:58]} (30. Rd1 $1 $11 {keeps the balance.}) 30... Rc7 {[%emt 0:01:31]} (30... g6 $17 31. Qc2 Qxd5 32. Bxc5 dxc5 33. Qxa4 Qd2+ 34. Kh1 Qd3) 31. Qg5 {[%emt 0:01:49][%cal Rg5d8] [#]} f6 {[%emt 0:07:36]} 32. Qf5 {[%emt 0:01:54]} ({Don't go for} 32. Rxf6 $2 Ne4 33. Qxe5 Re7 34. Bxd6 Nxd6 $19) 32... Qxd5 {[%emt 0:01:16]} 33. Bxc5 {[%emt 0:01:29]} dxc5 $15 {[%emt 0:01:40][%mdl 4096] Endgame KQR-KQR} 34. g5 {[%emt 0:00:36]} Rc6 {[%emt 0:06:22]} (34... Qd7 $15 35. Qf2 Qc6) 35. gxf6 {[%emt 0:01:09]} (35. Qg4 $11 {remains equal.}) 35... Rxf6 $17 {[%emt 0:00:30]} ({Of course not} 35... gxf6 36. Qg4+ Kf7 37. Qf5 $11) 36. Qc8+ {[%emt 0:00:11]} Kf7 $1 {[%emt 0:00:05]} 37. Rxf6+ {[%emt 0:02:22]} gxf6 {[%emt 0:00:06] KQ-KQ} 38. Qf5 $2 {[%emt 0:01:30][%mdl 8192] This costs White the game.} (38. h4 $17) 38... Qd2+ $19 {[%emt 0:00:35]} 39. Kg1 {[%emt 0:00:25]} Qc1+ {[%emt 0:00:18]} 40. Kg2 {[%emt 0:01:29]} Qxb2+ {[%emt 0:00:07]} 41. Kg1 {[%emt 0:31:04]} Qc1+ {[%emt 0:30:19]} 42. Kg2 {[%emt 0:00:00]} Qd2+ {[%emt 0:00:00]} 43. Kf1 {[%emt 0:00:00]} Qd1+ {[%emt 0:00:00]} 44. Kf2 {[%emt 0:00:00]} Kg7 {[%emt 0:00:00]} 45. Qe6 {[%emt 0:00:00]} Qd2+ {[%emt 0:00:00]} 46. Kf1 {[%emt 0:00:00]} Qd3+ {[%emt 0:00:00]} 47. Kf2 {[%emt 0:00:00]} a3 {[%emt 0:00:00]} 48. Qe7+ {[%emt 0:02:10]} Kg6 {[%emt 0:00:00]} 49. Qe8+ {[%emt 0:00:27]} Kg5 {[%emt 0:00:00]} 50. Qg8+ {[%emt 0:00:34]} Qg6 {[%emt 0:00:00]} 51. Qa2 {[%emt 0:00:27]} Qf5+ {[%emt 0:00:00]} 52. Kg2 {[%emt 0:00:04]} (52. Ke3 $142 e4 53. Qg8+ Qg6 54. Qe6) 52... Qe4+ {[%emt 0:00:00]} 53. Kh2 {[%emt 0:00:09]} c4 {[%emt 0:00:00] White must now prevent ...Kg6.} 54. Qd2+ {[%emt 0:02:52]} Kg6 {[%emt 0:00:00] [#] And now ...Qd3 would win.} 55. Qd8 {[%emt 0:00:29]} Qc2+ {[%emt 0:02:53]} 56. Kg1 {[%emt 0:00:07]} Qb1+ {[%emt 0:00:04]} (56... a2 $142 57. Qg8+ Kh6 58. Qf8+ Kg5 59. Qg8+ Qg6 60. h4+ Kh5 61. Qa8 Qxg3+ 62. Kf1 Qxh4 63. Kg2 Qg4+ 64. Kf2 Qf4+ 65. Ke1 Qh4+ 66. Kd2 Qf2+ 67. Kd1 Qf1+ 68. Kc2 a1=Q 69. Qxa1 Qxa1 70. Kd2 Qb2+ 71. Ke3 Kh4 72. Ke4 Qd2 73. Kf5 Qd6 74. Ke4 Qd3#) 57. Kh2 {[%emt 0:00:15]} Qb2+ {[%emt 0:00:35]} 58. Kg1 {[%emt 0:00:05]} Kf5 {[%emt 0:02:57] ( -> ...a2)} 59. g4+ {[%emt 0:01:44]} Ke4 {[%emt 0:01:19] Black mates.} 60. Qxf6 {[%emt 0:00:29]} Qc1+ {[%emt 0:00:53]} 61. Kg2 {[%emt 0:00:06]} Qd2+ {[%emt 0:00:05]} 62. Kg1 {[%emt 0:00:42]} Qxc3 {[%emt 0:03:37] Active counter play!} 63. Qc6+ {[%emt 0:00:39]} Kd3 {[%emt 0:00:56]} 64. Qf3+ {[%emt 0:00:31]} Kc2 {[%emt 0:00:09]} 65. Qe4+ {[%emt 0:00:21]} Kc1 {[%emt 0:00:28]} 66. Qe2 {[%emt 0:00:45]} Qd4+ {[%emt 0:00:34] Weighted Error Value: White=0.37/Black=0.10 (very precise)} 0-1

[Event "FRA-ch Teams Top 16-A 2022"]
[Site "Chartres"]
[Date "2022.06.12"]
[Round "4.16"]
[White "Guiot Dorel, Jerome"]
[Black "Coriat, Caroline"]
[Result "1-0"]
[ECO "D02"]
[WhiteElo "2069"]
[BlackElo "1752"]
[Annotator "TA"]
[PlyCount "47"]
[EventDate "2022.06.09"]
[EventType "team-tourn"]
[EventCountry "FRA"]
[SourceTitle "playchess.com"]
[Source "ChessBase"]
[SourceQuality "1"]
[TimeControl "40/5400+30:1800+30"]

{[%evp 13,46,0,18,0,0,0,55,0,61,50,85,91,108,75,221,189,357,287,273,262,286,304,289,275,516,512,29993,295,29996,29992,29997,29998,29998,29999,29999]} 1. d4 {[%emt 0:00:08]} d5 {[%emt 0:00:16]} 2. Bf4 {[%emt 0:00:12]} Nf6 {[%emt 0:01:34]} 3. e3 {[%emt 0:00:15]} e6 {[%emt 0:01:23]} 4. Nd2 {[%emt 0:00:15]} Be7 {[%emt 0:01:12]} 5. Bd3 {[%emt 0:01:09]} c5 {[%emt 0:04:02]} 6. c3 {[%emt 0:00:31]} Nc6 {[%emt 0:04:18]} 7. Ngf3 {[%emt 0:01:01]} a6 {[%emt 0:03:05]} 8. a4 {[%emt 0:03:04] D02: 1 d4 d5 2 Nf3 sidelines, including 2...Nf6 3 g3 and 2...Nf6 3 Bf4.} c4 {[%emt 0:08:55]} 9. Bc2 {[%emt 0:00:18]} Bd7 {[%emt 0:01:16] [#]} ({Black should try} 9... Nh5 $11) 10. O-O $146 {[%emt 0:04:07]} ({White should play} 10. Ne5 $14) ({Predecessor:} 10. h3 h6 11. Qe2 O-O 12. O-O Re8 13. Ne5 Nxe5 14. Bxe5 Nh7 15. e4 Bf6 16. Bh2 {1-0 (59) Suleymanov,A (1631)-Sahidi,S (1132) Bratislava 2019}) 10... O-O {[%emt 0:16:44]} (10... Nh5 $11) 11. Ne5 $14 {[%emt 0:03:20]} h6 {[%emt 0:10:45]} 12. Qf3 {[%emt 0:10:36]} b5 {[%emt 0:14:41]} 13. e4 {[%emt 0:07:12] 0x0.001b6910e0e5dp-1022s more active pieces. The black rooks are badly placed.} Na7 {[%emt 0:10:26]} (13... dxe4 $16 {is a better defense.} 14. Bxe4 Nxe5 15. dxe5 Nxe4 16. Nxe4 Bc6) 14. Rfe1 {[%emt 0:06:50] Threatens to win with Qh3.} Bc6 $2 {[%emt 0:05:57]} (14... dxe4 {keeps fighting.} 15. Nxe4 Nd5) 15. Nxc6 {[%emt 0:12:03]} Nxc6 {[%emt 0:00:16]} 16. Qh3 {[%emt 0:03:59] Hoping for e5.} dxe4 {[%emt 0:07:06]} 17. Nxe4 {[%emt 0:01:23]} Nd5 {[%emt 0:01:10]} 18. Bxh6 {[%emt 0:09:02]} gxh6 {[%emt 0:04:54]} (18... Re8 19. Qg4 Bf8) 19. Qxh6 $18 {[%emt 0:00:10][%cal Oe4g5] Threatening mate with Ng5!} Re8 {[%emt 0:01:00] [#]} (19... f5 $18 20. Qxe6+ Rf7 21. Qxc6 fxe4 22. Bxe4 Nc7 23. axb5 Bd6) 20. Ng3 $2 {[%emt 0:01:41]} (20. Nd6 $1 {[%mdl 512] mates} Nf6 {[#]} 21. Re3 $1 Bxd6 22. Rh3 Bxh2+ 23. Rxh2 Nh5 24. Bh7+ Kh8 25. Bg6+ Kg8 26. Qh7+ Kf8 27. Qxf7#) 20... Bf6 $2 {[%emt 0:00:51]} (20... Bg5 $18 21. Qh7+ Kf8) 21. Bh7+ {[%emt 0:01:04] White mates.} Kh8 {[%emt 0:00:23]} 22. Bg6+ {[%emt 0:00:11][%mdl 64] Discovered Attack} Kg8 {[%emt 0:00:10]} 23. Qh7+ {[%emt 0:00:09]} Kf8 {[%emt 0:00:01]} 24. Qxf7# {[%emt 0:00:13] White took control after the opening.  Weighted Error Value: White=0.64/Black=1.30} 1-0